[Event "Titled Tuesday Blitz May 30 Early 2023"]
[White "Garv Gaur"]
[Black "Papadiamandis, Elliot"]
[WhiteFideId "45030839"]
[BlackFideId "36074160"]
[WhiteElo "2068"]
[BlackElo "2219"]
[Result "1-0"]
[Round "04"]
[TimeControl "180+2"]
[Date "2023.05.30"]
[WhiteClock "0:00:17"]
[BlackClock "0:00:14"]

1. Nf3 {[%clk 0:02:52]}  Nf6 {[%clk 0:02:59]} 2. g3 {[%clk 0:02:52]}  g6 {[%clk 0:02:59]} 3. Bg2 {[%clk 0:02:52]}  Bg7 {[%clk 0:03:00]} 4. O-O {[%clk 0:02:53]}  O-O {[%clk 0:03:01]} 5. d4 {[%clk 0:02:53]}  d5 {[%clk 0:03:01]} 6. c4 {[%clk 0:02:53]}  dxc4 {[%clk 0:03:01]} 7. Na3 {[%clk 0:02:52]}  c3 {[%clk 0:03:01]} 8. bxc3 {[%clk 0:02:52]}  Nbd7 {[%clk 0:03:00]} 9. Nc4 {[%clk 0:02:50]}  Nb6 {[%clk 0:02:51]} 10. Nce5 {[%clk 0:02:33]}  c6 {[%clk 0:02:44]} 11. a4 {[%clk 0:02:30]}  a5 {[%clk 0:02:30]} 12. Ba3 {[%clk 0:02:28]}  Be6 {[%clk 0:02:29]} 13. Bc5 {[%clk 0:02:27]}  Nc4 {[%clk 0:02:28]} 14. Nxc4 {[%clk 0:02:24]}  Bxc4 {[%clk 0:02:29]} 15. Nd2 {[%clk 0:02:23]}  Be6 {[%clk 0:02:14]} 16. Rb1 {[%clk 0:02:23]}  Nd7 {[%clk 0:02:08]} 17. Rxb7 {[%clk 0:02:14]}  Nxc5 {[%clk 0:02:08]} 18. dxc5 {[%clk 0:02:15]}  Bxc3 {[%clk 0:02:02]} 19. Ne4 {[%clk 0:02:15]}  Bb4 {[%clk 0:01:48]} 20. Ng5 {[%clk 0:02:07]}  Qxd1 {[%clk 0:01:23]} 21. Rxd1 {[%clk 0:02:05]}  Bb3 {[%clk 0:01:24]} 22. Rdd7 {[%clk 0:02:02]}  Bxa4 {[%clk 0:01:21]} 23. Rxe7 {[%clk 0:02:02]}  Bxc5 {[%clk 0:01:10]} 24. Rxf7 {[%clk 0:02:02]}  Rxf7 {[%clk 0:01:09]} 25. Nxf7 {[%clk 0:02:03]}  Ra7 {[%clk 0:00:56]} 26. Nh6+ {[%clk 0:01:44]}  Kh8 {[%clk 0:00:53]} 27. Rb8+ {[%clk 0:01:27]}  Kg7 {[%clk 0:00:53]} 28. Ng4 {[%clk 0:01:27]}  Bb5 {[%clk 0:00:41]} 29. Rc8 {[%clk 0:01:16]}  a4 {[%clk 0:00:36]} 30. Bxc6 {[%clk 0:01:15]}  Bxc6 {[%clk 0:00:32]} 31. Rxc6 {[%clk 0:01:16]}  a3 {[%clk 0:00:33]} 32. Rxc5 {[%clk 0:01:16]}  a2 {[%clk 0:00:28]} 33. Rc1 {[%clk 0:01:16]}  a1=Q {[%clk 0:00:22]} 34. Rxa1 {[%clk 0:01:16]}  Rxa1+ {[%clk 0:00:23]} 35. Kg2 {[%clk 0:01:17]}  h5 {[%clk 0:00:23]} 36. Ne5 {[%clk 0:01:16]}  Kf6 {[%clk 0:00:23]} 37. Nf3 {[%clk 0:01:16]}  Ra2 {[%clk 0:00:22]} 38. e3 {[%clk 0:01:16]}  g5 {[%clk 0:00:23]} 39. h3 {[%clk 0:01:12]}  g4 {[%clk 0:00:23]} 40. hxg4 {[%clk 0:01:12]}  hxg4 {[%clk 0:00:23]} 41. Nd4 {[%clk 0:01:10]}  Ke5 {[%clk 0:00:21]} 42. Nc6+ {[%clk 0:01:10]}  Ke4 {[%clk 0:00:21]} 43. Nd4 {[%clk 0:01:07]}  Rb2 {[%clk 0:00:17]} 44. Nc6 {[%clk 0:01:02]}  Rc2 {[%clk 0:00:17]} 45. Nd4 {[%clk 0:01:02]}  Rc1 {[%clk 0:00:17]} 46. Nb3 {[%clk 0:01:00]}  Rd1 {[%clk 0:00:16]} 47. Nc5+ {[%clk 0:00:53]}  Kd5 {[%clk 0:00:15]} 48. Nd7 {[%clk 0:00:49]}  Ke6 {[%clk 0:00:14]} 49. Nc5+ {[%clk 0:00:49]}  Kf5 {[%clk 0:00:15]} 50. Nb3 {[%clk 0:00:46]}  Rb1 {[%clk 0:00:11]} 51. Nd4+ {[%clk 0:00:46]}  Ke4 {[%clk 0:00:11]} 52. Nc6 {[%clk 0:00:45]}  Kd3 {[%clk 0:00:10]} 53. Ne5+ {[%clk 0:00:44]}  Ke4 {[%clk 0:00:10]} 54. Nxg4 {[%clk 0:00:44]}  Kf5 {[%clk 0:00:10]} 55. Nh2 {[%clk 0:00:44]}  Rb2 {[%clk 0:00:09]} 56. Nf3 {[%clk 0:00:45]}  Ra2 {[%clk 0:00:09]} 57. Nd4+ {[%clk 0:00:45]}  Ke4 {[%clk 0:00:10]} 58. g4 {[%clk 0:00:45]}  Ra1 {[%clk 0:00:09]} 59. Ne2 {[%clk 0:00:42]}  Ra8 {[%clk 0:00:08]} 60. Ng3+ {[%clk 0:00:42]}  Ke5 {[%clk 0:00:08]} 61. f4+ {[%clk 0:00:43]}  Kf6 {[%clk 0:00:09]} 62. Kf3 {[%clk 0:00:43]}  Ra2 {[%clk 0:00:08]} 63. Ne4+ {[%clk 0:00:41]}  Kg7 {[%clk 0:00:08]} 64. f5 {[%clk 0:00:41]}  Ra1 {[%clk 0:00:06]} 65. Ng3 {[%clk 0:00:32]}  Ra3 {[%clk 0:00:05]} 66. Kf4 {[%clk 0:00:31]}  Ra1 {[%clk 0:00:05]} 67. e4 {[%clk 0:00:29]}  Kf7 {[%clk 0:00:04]} 68. g5 {[%clk 0:00:28]}  Rg1 {[%clk 0:00:04]} 69. e5 {[%clk 0:00:28]}  Rg2 {[%clk 0:00:04]} 70. e6+ {[%clk 0:00:27]}  Ke7 {[%clk 0:00:04]} 71. Ne4 {[%clk 0:00:27]}  Rg1 {[%clk 0:00:04]} 72. Ke5 {[%clk 0:00:28]}  Re1 {[%clk 0:00:03]} 73. f6+ {[%clk 0:00:28]}  Ke8 {[%clk 0:00:03]} 74. g6 {[%clk 0:00:25]}  Kf8 {[%clk 0:00:04]} 75. Kd4 {[%clk 0:00:13]}  Rd1+ {[%clk 0:00:04]} 76. Ke3 {[%clk 0:00:13]}  Re1+ {[%clk 0:00:04]} 77. Kf3 {[%clk 0:00:12]}  Rf1+ {[%clk 0:00:04]} 78. Ke2 {[%clk 0:00:13]}  Rg1 {[%clk 0:00:04]} 79. e7+ {[%clk 0:00:13]}  Ke8 {[%clk 0:00:04]} 80. Nd6+ {[%clk 0:00:13]}  Kd7 {[%clk 0:00:05]} 81. e8=Q+ {[%clk 0:00:14]}  Kxd6 {[%clk 0:00:06]} 82. Qe7+ {[%clk 0:00:14]}  Kd5 {[%clk 0:00:06]} 83. Qd7+ {[%clk 0:00:14]}  Ke4 {[%clk 0:00:06]} 84. Qe6+ {[%clk 0:00:14]}  Kf4 {[%clk 0:00:07]} 85. Qd6+ {[%clk 0:00:11]}  Kf5 {[%clk 0:00:06]} 86. Qc5+ {[%clk 0:00:11]}  Kxg6 {[%clk 0:00:06]} 87. Qxg1+ {[%clk 0:00:12]}  Kxf6 {[%clk 0:00:07]} 88. Kf3 {[%clk 0:00:12]}  Ke5 {[%clk 0:00:07]} 89. Qg4 {[%clk 0:00:12]}  Kd5 {[%clk 0:00:08]} 90. Qf4 {[%clk 0:00:12]}  Kc5 {[%clk 0:00:08]} 91. Qe4 {[%clk 0:00:13]}  Kd6 {[%clk 0:00:09]} 92. Qf5 {[%clk 0:00:13]}  Kc6 {[%clk 0:00:09]} 93. Qe5 {[%clk 0:00:13]}  Kd7 {[%clk 0:00:10]} 94. Qf6 {[%clk 0:00:14]}  Kc7 {[%clk 0:00:11]} 95. Qe6 {[%clk 0:00:14]}  Kd8 {[%clk 0:00:11]} 96. Qf7 {[%clk 0:00:14]}  Kc8 {[%clk 0:00:12]} 97. Ke4 {[%clk 0:00:15]}  Kd8 {[%clk 0:00:13]} 98. Kd5 {[%clk 0:00:16]}  Kc8 {[%clk 0:00:14]} 99. Kc6 {[%clk 0:00:16]}  Kb8 {[%clk 0:00:14]} 100. Qb7# {[%clk 0:00:17]} 1-0


[Site "https://www.chess.com"]

[Event "Titled Tuesday Blitz May 30 Early 2023"]
[White "Gheorghiu, Calin"]
[Black "Mendonca, Leon Luke"]
[WhiteFideId "1200305"]
[BlackFideId "35028561"]
[WhiteElo "2223"]
[BlackElo "2464"]
[Result "0-1"]
[Round "04"]
[TimeControl "180+2"]
[Date "2023.05.30"]
[WhiteClock "0:00:00"]
[BlackClock "0:00:03"]

1. d4 {[%clk 0:02:58]}  e6 {[%clk 0:02:54]} 2. e4 {[%clk 0:02:57]}  d5 {[%clk 0:02:53]} 3. Nc3 {[%clk 0:02:55]}  dxe4 {[%clk 0:02:53]} 4. Nxe4 {[%clk 0:02:54]}  Bd7 {[%clk 0:02:54]} 5. Bd3 {[%clk 0:02:47]}  Bc6 {[%clk 0:02:51]} 6. Nf3 {[%clk 0:02:48]}  Nd7 {[%clk 0:02:49]} 7. O-O {[%clk 0:02:45]}  Ngf6 {[%clk 0:02:49]} 8. Ng3 {[%clk 0:02:35]}  Be7 {[%clk 0:02:45]} 9. Ne5 {[%clk 0:02:23]}  Nxe5 {[%clk 0:02:40]} 10. dxe5 {[%clk 0:02:22]}  Qd5 {[%clk 0:02:32]} 11. f3 {[%clk 0:01:56]}  Qxe5 {[%clk 0:02:31]} 12. Re1 {[%clk 0:01:51]}  Qd4+ {[%clk 0:02:23]} 13. Kh1 {[%clk 0:01:44]}  h5 {[%clk 0:02:21]} 14. Qe2 {[%clk 0:01:32]}  O-O-O {[%clk 0:02:01]} 15. Be3 {[%clk 0:01:27]}  Qe5 {[%clk 0:01:56]} 16. Bxa7 {[%clk 0:01:05]}  Qxe2 {[%clk 0:01:54]} 17. Nxe2 {[%clk 0:01:01]}  b6 {[%clk 0:01:51]} 18. Ba6+ {[%clk 0:00:45]}  Bb7 {[%clk 0:01:51]} 19. Bd3 {[%clk 0:00:45]}  Nd5 {[%clk 0:01:45]} 20. a4 {[%clk 0:00:39]}  Nb4 {[%clk 0:01:41]} 21. a5 {[%clk 0:00:35]}  Nxd3 {[%clk 0:01:21]} 22. cxd3 {[%clk 0:00:30]}  bxa5 {[%clk 0:01:22]} 23. d4 {[%clk 0:00:24]}  Bb4 {[%clk 0:01:18]} 24. Rec1 {[%clk 0:00:24]}  Kd7 {[%clk 0:01:10]} 25. Bc5 {[%clk 0:00:23]}  Ra8 {[%clk 0:01:05]} 26. Nf4 {[%clk 0:00:22]}  h4 {[%clk 0:00:55]} 27. Nd3 {[%clk 0:00:22]}  Bd2 {[%clk 0:00:45]} 28. Rd1 {[%clk 0:00:21]}  Bg5 {[%clk 0:00:43]} 29. f4 {[%clk 0:00:19]}  Bf6 {[%clk 0:00:42]} 30. Ne5+ {[%clk 0:00:18]}  Bxe5 {[%clk 0:00:42]} 31. dxe5+ {[%clk 0:00:16]}  Bd5 {[%clk 0:00:42]} 32. h3 {[%clk 0:00:14]}  Rhb8 {[%clk 0:00:42]} 33. Rd2 {[%clk 0:00:09]}  Rb5 {[%clk 0:00:42]} 34. Bd4 {[%clk 0:00:08]}  g6 {[%clk 0:00:24]} 35. Bc3 {[%clk 0:00:08]}  a4 {[%clk 0:00:23]} 36. Rd4 {[%clk 0:00:07]}  Kc6 {[%clk 0:00:05]} 37. Rdxa4 {[%clk 0:00:06]}  Rxa4 {[%clk 0:00:06]} 38. Rxa4 {[%clk 0:00:06]}  Rc5 {[%clk 0:00:04]} 39. Ra6+ {[%clk 0:00:02]}  Kb7 {[%clk 0:00:04]} 40. Ra5 {[%clk 0:00:02]}  Rc4 {[%clk 0:00:04]} 41. Rb5+ {[%clk 0:00:01]}  Kc6 {[%clk 0:00:03]} 42. Rb4 {[%clk 0:00:02]}  Rc5 {[%clk 0:00:03]} 43. Kg1 {[%clk 0:00:01]}  Ra5 {[%clk 0:00:03]} 44. Kf2 {[%clk 0:00:00]}  Ra1 {[%clk 0:00:03]} 0-1


[Site "https://www.chess.com"]

[Event "Titled Tuesday Blitz May 30 Early 2023"]
[White "splendidkid"]
[Black "Mortazavi, Ali"]
[BlackFideId "401323"]
[WhiteElo "2760"]
[BlackElo "2339"]
[Result "1-0"]
[Round "04"]
[TimeControl "180+2"]
[Date "2023.05.30"]
[WhiteClock "0:00:09"]
[BlackClock "0:00:09"]

1. d4 {[%clk 0:03:00]}  Nf6 {[%clk 0:02:59]} 2. c4 {[%clk 0:03:00]}  g6 {[%clk 0:02:59]} 3. Nf3 {[%clk 0:03:00]}  Bg7 {[%clk 0:03:00]} 4. Nc3 {[%clk 0:03:00]}  O-O {[%clk 0:03:01]} 5. Bf4 {[%clk 0:03:00]}  d6 {[%clk 0:03:02]} 6. h3 {[%clk 0:03:00]}  c5 {[%clk 0:03:02]} 7. e3 {[%clk 0:03:00]}  cxd4 {[%clk 0:03:02]} 8. exd4 {[%clk 0:03:01]}  d5 {[%clk 0:03:02]} 9. Be2 {[%clk 0:02:57]}  dxc4 {[%clk 0:02:56]} 10. Bxc4 {[%clk 0:02:58]}  b6 {[%clk 0:02:52]} 11. O-O {[%clk 0:02:53]}  Bb7 {[%clk 0:02:52]} 12. Qe2 {[%clk 0:02:52]}  Nc6 {[%clk 0:02:43]} 13. Rfd1 {[%clk 0:02:28]}  Rc8 {[%clk 0:02:28]} 14. d5 {[%clk 0:02:19]}  Na5 {[%clk 0:02:26]} 15. Ba6 {[%clk 0:02:19]}  Bxa6 {[%clk 0:02:13]} 16. Qxa6 {[%clk 0:02:19]}  Nc4 {[%clk 0:02:14]} 17. Ne5 {[%clk 0:01:26]}  Nxb2 {[%clk 0:02:03]} 18. Nc6 {[%clk 0:01:26]}  Nxd1 {[%clk 0:01:33]} 19. Nxd8 {[%clk 0:01:11]}  Nxc3 {[%clk 0:01:33]} 20. Qxc8 {[%clk 0:01:10]}  Ne2+ {[%clk 0:01:29]} 21. Kh1 {[%clk 0:01:08]}  Nxf4 {[%clk 0:01:30]} 22. d6 {[%clk 0:00:45]}  exd6 {[%clk 0:01:21]} 23. Rd1 {[%clk 0:00:46]}  Ne4 {[%clk 0:01:13]} 24. Qc2 {[%clk 0:00:43]}  Nc5 {[%clk 0:01:00]} 25. Rxd6 {[%clk 0:00:37]}  Re8 {[%clk 0:00:53]} 26. Nc6 {[%clk 0:00:34]}  Bf8 {[%clk 0:00:46]} 27. Rd8 {[%clk 0:00:32]}  Re1+ {[%clk 0:00:46]} 28. Kh2 {[%clk 0:00:32]}  Nfe6 {[%clk 0:00:40]} 29. Ne7+ {[%clk 0:00:27]}  Kg7 {[%clk 0:00:41]} 30. Qc3+ {[%clk 0:00:27]}  f6 {[%clk 0:00:39]} 31. Rxf8 {[%clk 0:00:21]}  Kxf8 {[%clk 0:00:36]} 32. Nxg6+ {[%clk 0:00:21]}  hxg6 {[%clk 0:00:37]} 33. Qxe1 {[%clk 0:00:22]}  Kf7 {[%clk 0:00:36]} 34. Qe3 {[%clk 0:00:20]}  g5 {[%clk 0:00:36]} 35. g3 {[%clk 0:00:20]}  f5 {[%clk 0:00:33]} 36. h4 {[%clk 0:00:18]}  g4 {[%clk 0:00:31]} 37. Qe5 {[%clk 0:00:16]}  Kg6 {[%clk 0:00:29]} 38. h5+ {[%clk 0:00:17]}  Kg5 {[%clk 0:00:29]} 39. h6 {[%clk 0:00:17]}  Kxh6 {[%clk 0:00:26]} 40. Qxf5 {[%clk 0:00:17]}  Ng5 {[%clk 0:00:25]} 41. Qxg4 {[%clk 0:00:17]}  Nd3 {[%clk 0:00:26]} 42. Kg2 {[%clk 0:00:16]}  Ne1+ {[%clk 0:00:26]} 43. Kf1 {[%clk 0:00:16]}  Nef3 {[%clk 0:00:26]} 44. Ke2 {[%clk 0:00:14]}  Ng1+ {[%clk 0:00:26]} 45. Kd1 {[%clk 0:00:14]}  N1f3 {[%clk 0:00:26]} 46. Qd7 {[%clk 0:00:14]}  Kh5 {[%clk 0:00:23]} 47. Qxa7 {[%clk 0:00:14]}  b5 {[%clk 0:00:23]} 48. Qb7 {[%clk 0:00:14]}  Nd4 {[%clk 0:00:21]} 49. f4 {[%clk 0:00:14]}  Ngf3 {[%clk 0:00:21]} 50. Qg7 {[%clk 0:00:13]}  b4 {[%clk 0:00:17]} 51. Qf8 {[%clk 0:00:11]}  Kg4 {[%clk 0:00:17]} 52. Qxb4 {[%clk 0:00:11]}  Kxg3 {[%clk 0:00:18]} 53. a4 {[%clk 0:00:11]}  Kxf4 {[%clk 0:00:17]} 54. a5 {[%clk 0:00:12]}  Ke3 {[%clk 0:00:18]} 55. a6 {[%clk 0:00:11]}  Ne5 {[%clk 0:00:15]} 56. Qd2+ {[%clk 0:00:09]}  Ke4 {[%clk 0:00:09]} 57. a7 {[%clk 0:00:09]} 1-0


[Site "https://www.chess.com"]

[Event "Titled Tuesday Blitz May 30 Early 2023"]
[White "Simonian, Hrair"]
[Black "ATM622"]
[WhiteFideId "13302337"]
[WhiteElo "2447"]
[BlackElo "2550"]
[Result "1/2-1/2"]
[Round "04"]
[TimeControl "180+2"]
[Date "2023.05.30"]
[WhiteClock "0:00:07"]
[BlackClock "0:00:21"]

1. e4 {[%clk 0:03:00]}  c6 {[%clk 0:02:57]} 2. d4 {[%clk 0:03:00]}  d5 {[%clk 0:02:57]} 3. Nc3 {[%clk 0:03:01]}  dxe4 {[%clk 0:02:56]} 4. Nxe4 {[%clk 0:03:02]}  Bf5 {[%clk 0:02:56]} 5. Ng3 {[%clk 0:03:01]}  Bg6 {[%clk 0:02:56]} 6. h4 {[%clk 0:03:02]}  h6 {[%clk 0:02:56]} 7. Nh3 {[%clk 0:03:03]}  Nd7 {[%clk 0:02:56]} 8. Nf4 {[%clk 0:03:03]}  Bh7 {[%clk 0:02:56]} 9. c3 {[%clk 0:03:04]}  e5 {[%clk 0:02:54]} 10. Qe2 {[%clk 0:03:02]}  Bd6 {[%clk 0:02:36]} 11. Ngh5 {[%clk 0:02:43]}  g6 {[%clk 0:02:34]} 12. Ng7+ {[%clk 0:02:43]}  Ke7 {[%clk 0:02:27]} 13. h5 {[%clk 0:01:53]}  g5 {[%clk 0:02:23]} 14. Nd3 {[%clk 0:01:39]}  Kf6 {[%clk 0:02:20]} 15. dxe5+ {[%clk 0:01:33]}  Nxe5 {[%clk 0:02:20]} 16. Nxe5 {[%clk 0:01:26]}  Bxe5 {[%clk 0:02:20]} 17. g4 {[%clk 0:01:25]}  Qd5 {[%clk 0:02:11]} 18. Rh3 {[%clk 0:01:01]}  Kxg7 {[%clk 0:02:11]} 19. Be3 {[%clk 0:01:01]}  Rd8 {[%clk 0:02:08]} 20. Bxa7 {[%clk 0:00:59]}  Nf6 {[%clk 0:02:05]} 21. Bb6 {[%clk 0:00:32]}  Rd7 {[%clk 0:02:05]} 22. c4 {[%clk 0:00:27]}  Qe6 {[%clk 0:01:58]} 23. Re3 {[%clk 0:00:25]}  Re8 {[%clk 0:01:57]} 24. Bh3 {[%clk 0:00:21]}  Qd6 {[%clk 0:01:45]} 25. Ba5 {[%clk 0:00:13]}  Rde7 {[%clk 0:01:44]} 26. Kf1 {[%clk 0:00:11]}  Bf4 {[%clk 0:01:41]} 27. Rxe7 {[%clk 0:00:11]}  Qxe7 {[%clk 0:01:42]} 28. Qxe7 {[%clk 0:00:11]}  Rxe7 {[%clk 0:01:43]} 29. Bc3 {[%clk 0:00:11]}  Bd3+ {[%clk 0:01:42]} 30. Kg1 {[%clk 0:00:11]}  Be5 {[%clk 0:01:40]} 31. Re1 {[%clk 0:00:09]}  Bd6 {[%clk 0:01:38]} 32. Rd1 {[%clk 0:00:08]}  Rd7 {[%clk 0:01:22]} 33. Rxd3 {[%clk 0:00:07]}  Bh2+ {[%clk 0:01:22]} 34. Kxh2 {[%clk 0:00:08]}  Rxd3 {[%clk 0:01:22]} 35. Bf1 {[%clk 0:00:05]}  Rd1 {[%clk 0:01:12]} 36. Be2 {[%clk 0:00:06]}  Rc1 {[%clk 0:01:11]} 37. Kg2 {[%clk 0:00:04]}  Ra1 {[%clk 0:01:03]} 38. a3 {[%clk 0:00:03]}  Rc1 {[%clk 0:01:01]} 39. Bd3 {[%clk 0:00:04]}  Rxc3 {[%clk 0:00:56]} 40. bxc3 {[%clk 0:00:05]}  Nxg4 {[%clk 0:00:56]} 41. c5 {[%clk 0:00:05]}  Ne5 {[%clk 0:00:56]} 42. Bf5 {[%clk 0:00:05]}  Kf6 {[%clk 0:00:52]} 43. Bc8 {[%clk 0:00:06]}  Ke7 {[%clk 0:00:47]} 44. Bxb7 {[%clk 0:00:06]}  Kd8 {[%clk 0:00:47]} 45. Ba6 {[%clk 0:00:06]}  Nd7 {[%clk 0:00:44]} 46. Bc4 {[%clk 0:00:06]}  f5 {[%clk 0:00:41]} 47. Be6 {[%clk 0:00:05]}  f4 {[%clk 0:00:41]} 48. Bxd7 {[%clk 0:00:05]}  Kxd7 {[%clk 0:00:41]} 49. Kf3 {[%clk 0:00:06]}  Ke6 {[%clk 0:00:40]} 50. Ke4 {[%clk 0:00:07]}  Kd7 {[%clk 0:00:38]} 51. Kf5 {[%clk 0:00:06]}  Kc7 {[%clk 0:00:33]} 52. f3 {[%clk 0:00:05]}  Kb7 {[%clk 0:00:33]} 53. Kg6 {[%clk 0:00:03]}  g4 {[%clk 0:00:32]} 54. fxg4 {[%clk 0:00:03]}  f3 {[%clk 0:00:32]} 55. Kxh6 {[%clk 0:00:04]}  f2 {[%clk 0:00:33]} 56. g5 {[%clk 0:00:05]}  f1=Q {[%clk 0:00:33]} 57. g6 {[%clk 0:00:06]}  Qf6 {[%clk 0:00:30]} 58. Kh7 {[%clk 0:00:05]}  Qf5 {[%clk 0:00:29]} 59. h6 {[%clk 0:00:05]}  Qd7+ {[%clk 0:00:29]} 60. g7 {[%clk 0:00:05]}  Qf5+ {[%clk 0:00:29]} 61. Kh8 {[%clk 0:00:06]}  Qf6 {[%clk 0:00:21]} 62. Kh7 {[%clk 0:00:06]}  Qf7 {[%clk 0:00:20]} 63. Kh8 {[%clk 0:00:06]}  Qf6 {[%clk 0:00:21]} 64. Kh7 {[%clk 0:00:06]}  Qf7 {[%clk 0:00:21]} 65. Kh8 {[%clk 0:00:07]}  Qf6 {[%clk 0:00:21]} 1/2-1/2


[Site "https://www.chess.com"]

[Event "Titled Tuesday Blitz May 30 Early 2023"]
[White "Csonka, Balazs"]
[Black "Roberson, Peter T"]
[WhiteFideId "742910"]
[BlackFideId "412384"]
[WhiteElo "2404"]
[BlackElo "2346"]
[Result "0-1"]
[Round "04"]
[TimeControl "180+2"]
[Date "2023.05.30"]
[WhiteClock "0:00:04"]
[BlackClock "0:00:30"]

1. c4 {[%clk 0:03:00]}  b6 {[%clk 0:02:58]} 2. e4 {[%clk 0:02:59]}  e6 {[%clk 0:02:56]} 3. d4 {[%clk 0:02:52]}  Bb7 {[%clk 0:02:56]} 4. Bd3 {[%clk 0:02:53]}  Bb4+ {[%clk 0:02:55]} 5. Bd2 {[%clk 0:02:43]}  Nc6 {[%clk 0:02:56]} 6. Nf3 {[%clk 0:02:37]}  d5 {[%clk 0:02:46]} 7. cxd5 {[%clk 0:02:19]}  exd5 {[%clk 0:02:44]} 8. e5 {[%clk 0:02:16]}  Nge7 {[%clk 0:02:37]} 9. O-O {[%clk 0:02:09]}  Bxd2 {[%clk 0:02:30]} 10. Qxd2 {[%clk 0:01:59]}  O-O {[%clk 0:02:29]} 11. Nc3 {[%clk 0:01:59]}  Nb4 {[%clk 0:02:27]} 12. Bb1 {[%clk 0:01:51]}  c5 {[%clk 0:02:27]} 13. Re1 {[%clk 0:01:43]}  Ng6 {[%clk 0:02:05]} 14. Nb5 {[%clk 0:01:21]}  a5 {[%clk 0:01:44]} 15. Nd6 {[%clk 0:01:17]}  Bc6 {[%clk 0:01:45]} 16. a3 {[%clk 0:00:47]}  Na6 {[%clk 0:01:42]} 17. Bxg6 {[%clk 0:00:41]}  hxg6 {[%clk 0:01:37]} 18. Qf4 {[%clk 0:00:39]}  Nc7 {[%clk 0:01:32]} 19. Ng5 {[%clk 0:00:27]}  f6 {[%clk 0:01:15]} 20. Nf3 {[%clk 0:00:27]}  Ne6 {[%clk 0:01:13]} 21. Qg4 {[%clk 0:00:22]}  Nxd4 {[%clk 0:01:13]} 22. Nxd4 {[%clk 0:00:17]}  cxd4 {[%clk 0:01:14]} 23. Qe6+ {[%clk 0:00:17]}  Kh7 {[%clk 0:01:12]} 24. Qh3+ {[%clk 0:00:17]}  Kg8 {[%clk 0:01:12]} 25. Qe6+ {[%clk 0:00:17]}  Kh7 {[%clk 0:01:12]} 26. Rac1 {[%clk 0:00:17]}  Qd7 {[%clk 0:01:01]} 27. Qxd7 {[%clk 0:00:17]}  Bxd7 {[%clk 0:01:02]} 28. e6 {[%clk 0:00:17]}  Ba4 {[%clk 0:00:53]} 29. e7 {[%clk 0:00:16]}  Rfb8 {[%clk 0:00:47]} 30. e8=Q {[%clk 0:00:05]}  Bxe8 {[%clk 0:00:46]} 31. Nxe8 {[%clk 0:00:02]}  Rxe8 {[%clk 0:00:47]} 32. Red1 {[%clk 0:00:03]}  Rac8 {[%clk 0:00:42]} 33. g3 {[%clk 0:00:02]}  Rxc1 {[%clk 0:00:41]} 34. Rxc1 {[%clk 0:00:03]}  Re2 {[%clk 0:00:40]} 35. Rd1 {[%clk 0:00:02]}  Rxb2 {[%clk 0:00:38]} 36. Rxd4 {[%clk 0:00:02]}  Rb3 {[%clk 0:00:35]} 37. a4 {[%clk 0:00:02]}  Rb4 {[%clk 0:00:35]} 38. Rxd5 {[%clk 0:00:03]}  Rxa4 {[%clk 0:00:36]} 39. Rd7 {[%clk 0:00:03]}  Rb4 {[%clk 0:00:32]} 40. Rb7 {[%clk 0:00:04]}  a4 {[%clk 0:00:30]} 0-1


[Site "https://www.chess.com"]

[Event "Titled Tuesday Blitz May 30 Early 2023"]
[White "Schmakel, Sam"]
[Black "Belov, Alexei"]
[WhiteFideId "2039311"]
[BlackFideId "4128206"]
[WhiteElo "2356"]
[BlackElo "2547"]
[Result "0-1"]
[Round "04"]
[TimeControl "180+2"]
[Date "2023.05.30"]
[WhiteClock "0:00:03"]
[BlackClock "0:00:14"]

1. d4 {[%clk 0:03:00]}  e6 {[%clk 0:03:00]} 2. c4 {[%clk 0:02:55]}  d5 {[%clk 0:03:00]} 3. Nf3 {[%clk 0:02:54]}  Nf6 {[%clk 0:03:00]} 4. Nc3 {[%clk 0:02:54]}  Be7 {[%clk 0:03:00]} 5. Bf4 {[%clk 0:02:54]}  O-O {[%clk 0:02:59]} 6. Rc1 {[%clk 0:02:54]}  a6 {[%clk 0:02:52]} 7. c5 {[%clk 0:02:38]}  b6 {[%clk 0:02:38]} 8. cxb6 {[%clk 0:02:36]}  cxb6 {[%clk 0:02:38]} 9. e3 {[%clk 0:02:36]}  Bb7 {[%clk 0:02:29]} 10. Bd3 {[%clk 0:02:36]}  b5 {[%clk 0:02:22]} 11. g4 {[%clk 0:02:18]}  Nbd7 {[%clk 0:02:11]} 12. Rg1 {[%clk 0:01:52]}  Ne4 {[%clk 0:02:06]} 13. Nd2 {[%clk 0:01:45]}  Nxd2 {[%clk 0:01:40]} 14. Qxd2 {[%clk 0:01:46]}  Bg5 {[%clk 0:01:27]} 15. Bxg5 {[%clk 0:01:36]}  Qxg5 {[%clk 0:01:26]} 16. f4 {[%clk 0:01:36]}  Qh4+ {[%clk 0:01:25]} 17. Qf2 {[%clk 0:01:36]}  Qxf2+ {[%clk 0:01:22]} 18. Kxf2 {[%clk 0:01:37]}  Rac8 {[%clk 0:01:17]} 19. a4 {[%clk 0:01:16]}  b4 {[%clk 0:01:15]} 20. Na2 {[%clk 0:01:16]}  a5 {[%clk 0:01:15]} 21. b3 {[%clk 0:01:16]}  f6 {[%clk 0:01:06]} 22. Bb5 {[%clk 0:01:15]}  Nb8 {[%clk 0:00:57]} 23. Ke2 {[%clk 0:01:08]}  Kf7 {[%clk 0:00:52]} 24. Rxc8 {[%clk 0:01:00]}  Rxc8 {[%clk 0:00:52]} 25. Rc1 {[%clk 0:01:01]}  Rxc1 {[%clk 0:00:50]} 26. Nxc1 {[%clk 0:01:02]}  Ba6 {[%clk 0:00:51]} 27. Nd3 {[%clk 0:00:58]}  Bxb5 {[%clk 0:00:35]} 28. axb5 {[%clk 0:00:59]}  Nd7 {[%clk 0:00:36]} 29. Nc5 {[%clk 0:00:48]}  Nxc5 {[%clk 0:00:35]} 30. dxc5 {[%clk 0:00:48]}  Ke7 {[%clk 0:00:36]} 31. Kd3 {[%clk 0:00:36]}  e5 {[%clk 0:00:35]} 32. fxe5 {[%clk 0:00:20]}  fxe5 {[%clk 0:00:35]} 33. e4 {[%clk 0:00:19]}  dxe4+ {[%clk 0:00:15]} 34. Kxe4 {[%clk 0:00:20]}  a4 {[%clk 0:00:15]} 35. bxa4 {[%clk 0:00:15]}  b3 {[%clk 0:00:15]} 36. Kd5 {[%clk 0:00:03]}  b2 {[%clk 0:00:14]} 0-1


[Site "https://www.chess.com"]

[Event "Titled Tuesday Blitz May 30 Early 2023"]
[White "Lehtosaari, Mauri"]
[Black "Seo, Jung Min"]
[WhiteFideId "501999"]
[BlackFideId "1734687"]
[WhiteElo "2540"]
[BlackElo "2468"]
[Result "0-1"]
[Round "04"]
[TimeControl "180+2"]
[Date "2023.05.30"]
[WhiteClock "0:00:03"]
[BlackClock "0:01:06"]

1. e4 {[%clk 0:02:58]}  e5 {[%clk 0:02:57]} 2. Nf3 {[%clk 0:02:57]}  Nc6 {[%clk 0:02:54]} 3. d4 {[%clk 0:02:57]}  exd4 {[%clk 0:02:53]} 4. Bc4 {[%clk 0:02:56]}  Bc5 {[%clk 0:02:47]} 5. c3 {[%clk 0:02:46]}  Nf6 {[%clk 0:02:44]} 6. e5 {[%clk 0:02:45]}  d5 {[%clk 0:02:44]} 7. Bb5 {[%clk 0:02:43]}  Ne4 {[%clk 0:02:43]} 8. cxd4 {[%clk 0:02:38]}  Bb6 {[%clk 0:02:42]} 9. Nc3 {[%clk 0:02:37]}  O-O {[%clk 0:02:41]} 10. h3 {[%clk 0:02:24]}  Bf5 {[%clk 0:02:27]} 11. O-O {[%clk 0:02:18]}  Ne7 {[%clk 0:02:20]} 12. Re1 {[%clk 0:01:46]}  Bg6 {[%clk 0:02:11]} 13. Be3 {[%clk 0:01:35]}  Nf5 {[%clk 0:02:09]} 14. Ba4 {[%clk 0:01:32]}  Nxe3 {[%clk 0:02:08]} 15. fxe3 {[%clk 0:01:31]}  Ba5 {[%clk 0:02:03]} 16. Rc1 {[%clk 0:01:27]}  c6 {[%clk 0:02:03]} 17. Bc2 {[%clk 0:01:25]}  Bxc3 {[%clk 0:01:55]} 18. bxc3 {[%clk 0:01:22]}  Nxc3 {[%clk 0:01:55]} 19. Qd2 {[%clk 0:01:20]}  Bxc2 {[%clk 0:01:50]} 20. Qxc2 {[%clk 0:01:19]}  Ne4 {[%clk 0:01:49]} 21. Rb1 {[%clk 0:01:18]}  Qe7 {[%clk 0:01:48]} 22. a4 {[%clk 0:01:08]}  Rac8 {[%clk 0:01:44]} 23. a5 {[%clk 0:01:08]}  Rc7 {[%clk 0:01:33]} 24. Rb2 {[%clk 0:01:04]}  Ng5 {[%clk 0:01:29]} 25. Nxg5 {[%clk 0:00:39]}  Qxg5 {[%clk 0:01:28]} 26. Qc5 {[%clk 0:00:36]}  a6 {[%clk 0:01:18]} 27. Rb3 {[%clk 0:00:28]}  f6 {[%clk 0:01:17]} 28. e6 {[%clk 0:00:25]}  Re8 {[%clk 0:01:10]} 29. Reb1 {[%clk 0:00:14]}  Rxe6 {[%clk 0:01:09]} 30. Rxb7 {[%clk 0:00:12]}  Qxe3+ {[%clk 0:01:06]} 31. Kf1 {[%clk 0:00:05]}  Rxb7 {[%clk 0:01:07]} 32. Rxb7 {[%clk 0:00:03]}  Qe1# {[%clk 0:01:06]} 0-1


[Site "https://www.chess.com"]